bitfinex/quotes_BTCUSD_20240613
["timestamp","ask_amount","ask_price","bid_price","bid_amount"]
[1718243126447,0.6963445,68113.0,68112.0,0.023946]
[1718243131772,0.6963445,68113.0,68112.0,0.022751]
[1718243132315,0.6963445,68113.0,68112.0,0.023697]
[1718243135336,0.6863445,68113.0,68112.0,0.023697]
[1718243135757,0.6963445,68113.0,68112.0,0.023697]
[1718243137166,0.6863445,68113.0,68112.0,0.023697]
[1718243137870,0.5663445,68113.0,68112.0,0.023697]
[1718243138006,0.6863445,68113.0,68112.0,0.023697]
[1718243141187,0.6863445,68113.0,68112.0,0.02332208]
[1718243144392,0.6299445,68113.0,68112.0,0.02332208]
[1718243150319,0.05832457,68113.0,68112.0,0.02332208]
[1718243150920,0.05186,68113.0,68112.0,0.02332208]
[1718243151131,0.05186,68113.0,68112.0,0.12702208]
[1718243152849,0.00186,68113.0,68112.0,0.12702208]
[1718243155832,0.00186,68113.0,68112.0,0.17374094]
[1718243156041,0.00186,68113.0,68112.0,0.26162969]
[1718243156245,0.00186,68113.0,68112.0,0.23965999]
[1718243156448,0.00186,68113.0,68112.0,0.12702208]
[1718243157031,0.00186,68113.0,68112.0,0.11802208]
[1718243157662,0.00186,68113.0,68112.0,0.18394217]
[1718243157835,0.00086,68113.0,68112.0,0.17056609]
[1718243158648,0.00086,68113.0,68112.0,0.18456609]
[1718243159057,0.00086,68113.0,68112.0,0.19856609]
[1718243159268,0.00086,68113.0,68112.0,0.104646]
[1718243159679,0.00086,68113.0,68112.0,0.118646]
[1718243159877,0.00086,68113.0,68112.0,0.18456609]
[1718243160084,0.00086,68113.0,68112.0,0.18956609]
[1718243160277,0.00086,68113.0,68112.0,0.28956609]
[1718243160453,0.00086,68113.0,68112.0,0.36757415]
[1718243160655,0.00086,68113.0,68112.0,0.4554676]
[1718243161402,0.00086,68113.0,68112.0,0.36757415]
[1718243161607,0.00086,68113.0,68112.0,0.44738747]
[1718243161814,0.00086,68113.0,68112.0,1.18299115]
[1718243162016,0.00858,68125.0,68123.0,0.005]
[1718243162219,0.00858,68125.0,68124.0,0.08737051]
[1718243162584,0.00858,68125.0,68124.0,0.09237051]
[1718243162791,0.00858,68125.0,68124.0,0.2830106]
[1718243162990,0.00858,68125.0,68124.0,0.2362196]
[1718243163192,0.00858,68125.0,68124.0,0.23619272]
[1718243163428,0.00858,68125.0,68124.0,0.22838172]
[1718243163866,0.00858,68125.0,68124.0,0.37270165]
[1718243164205,0.00858,68125.0,68124.0,0.48967044]
[1718243164443,0.00858,68125.0,68124.0,0.64427044]
[1718243164662,0.00858,68125.0,68124.0,0.49747944]
[1718243165105,0.00858,68125.0,68124.0,0.58745031]
[1718243170361,0.00086,68131.0,68130.0,0.005]
[1718243170591,0.00086,68131.0,68130.0,0.41131993]
[1718243171230,0.00086,68131.0,68130.0,0.71269793]
[1718243171638,0.00086,68131.0,68130.0,1.4122476]
[1718243171860,0.00086,68132.0,68131.0,0.40822567]
[1718243172075,0.00086,68132.0,68131.0,0.6525456]
[1718243173440,0.00858,68136.0,68135.0,0.40801667]
[1718243173685,0.00858,68150.0,68148.0,0.00454967]
[1718243173891,0.00858,68150.0,68149.0,0.16788149]
[1718243174060,0.00858,68150.0,68149.0,0.31513445]
[1718243174414,0.00858,68150.0,68149.0,0.41513445]
[1718243174825,0.00858,68150.0,68149.0,0.41475844]
[1718243175302,0.00858,68150.0,68149.0,0.71609544]
[1718243175439,0.1563,68170.0,68151.0,0.41010566]
[1718243175637,0.1563,68170.0,68151.0,0.65442559]
[1718243176424,0.1563,68170.0,68151.0,0.50769359]
[1718243176605,0.2063,68170.0,68151.0,0.50769359]
[1718243177028,0.2063,68170.0,68151.0,0.52169359]
[1718243177756,0.2063,68170.0,68151.0,0.53569359]
[1718243178818,0.1563,68170.0,68151.0,0.68242559]
[1718243179044,0.206,68175.0,68162.0,0.1058]
[1718243179287,0.43295979,68167.0,68163.0,0.00586713]
[1718243179533,0.206,68175.0,68166.0,0.0564]
[1718243179791,0.206,68175.0,68174.0,0.0564]
[1718243180983,0.226,68175.0,68174.0,0.0564]
[1718243181193,0.206,68175.0,68167.0,0.00586678]
[1718243181427,0.206,68175.0,68174.0,0.0564]
[1718243181849,0.206,68175.0,68174.0,0.0704]
[1718243182346,0.156,68175.0,68174.0,0.0704]
[1718243182518,0.206,68175.0,68174.0,0.0704]
[1718243182996,0.206,68175.0,68174.0,0.07026444]
[1718243188115,0.2058,68175.0,68174.0,0.07026444]
[1718243190361,0.2058,68175.0,68174.0,0.0704]
[1718243190761,0.1558,68175.0,68174.0,0.0704]
[1718243190971,0.2058,68175.0,68174.0,0.0704]
[1718243191776,0.3258,68175.0,68174.0,0.014]
[1718243192022,0.3258,68175.0,68174.0,0.0704]
[1718243192221,0.2258,68175.0,68174.0,0.0704]
[1718243192767,0.2758,68175.0,68174.0,0.0704]
[1718243192972,0.3258,68175.0,68174.0,0.0704]
[1718243193605,0.2058,68175.0,68174.0,0.0704]
[1718243194136,0.3258,68175.0,68174.0,0.0704]
[1718243195249,0.45232634,68175.0,68174.0,0.014]
[1718243195606,0.45232634,68175.0,68174.0,0.014946]
[1718243195765,0.45318634,68175.0,68174.0,0.014946]
[1718243196341,0.60750627,68175.0,68174.0,0.014946]
[1718243196560,0.68690627,68175.0,68174.0,0.014946]
[1718243196700,0.67690627,68175.0,68174.0,0.014946]
[1718243197381,0.68690627,68175.0,68174.0,0.014946]
[1718243198195,0.67690627,68175.0,68174.0,0.014946]
[1718243198401,0.68690627,68175.0,68174.0,0.014946]
[1718243199016,0.67690627,68175.0,68174.0,0.014946]
[1718243199244,0.62050627,68175.0,68174.0,0.014946]
[1718243199449,0.59750627,68175.0,68174.0,0.014946]
[1718243201735,0.15996,68175.0,68174.0,0.014946]
[1718243201908,0.20996,68175.0,68174.0,0.071346]
[1718243202109,0.05086,68175.0,68174.0,0.071346]
[1718243202917,0.05086,68175.0,68174.0,0.057346]
[1718243203115,0.05086,68175.0,68174.0,0.071346]
[1718243203871,0.05086,68175.0,68174.0,0.060346]
[1718243204144,0.05086,68175.0,68174.0,0.071346]
[1718243204543,0.05086,68175.0,68174.0,0.074346]
[1718243204999,0.05086,68175.0,68174.0,0.017946]
[1718243205204,0.07086,68175.0,68174.0,0.017946]
[1718243205373,0.17086,68175.0,68174.0,0.017946]
[1718243205818,0.17086,68175.0,68174.0,0.07672596]
[1718243208158,0.17086,68175.0,68174.0,0.07637022]
[1718243210842,0.05086,68175.0,68174.0,0.07637022]
[1718243211048,0.17086,68175.0,68174.0,0.07637022]
[1718243211472,0.17086,68175.0,68174.0,0.0763433]
[1718243211700,0.60020627,68175.0,68174.0,0.0763433]
[1718243212334,0.60020627,68175.0,68174.0,0.01759026]
[1718243212335,0.61020627,68175.0,68174.0,0.01759026]
[1718243213119,0.63320627,68175.0,68174.0,0.01759026]
[1718243216120,0.6932459,68175.0,68174.0,0.01759026]
[1718243216329,0.3518,68157.0,68156.0,0.4744]
[1718243216531,0.12,68155.0,68149.0,0.0809]
[1718243216736,0.12,68154.0,68149.0,0.0809]
[1718243216939,0.12,68152.0,68149.0,0.09857722]
[1718243217349,0.12,68154.0,68149.0,0.09857722]
[1718243217753,0.12,68152.0,68149.0,0.09857722]
[1718243218010,0.12,68151.0,68149.0,0.09857722]
[1718243218437,0.12,68152.0,68149.0,0.11257722]
[1718243219134,0.12,68151.0,68149.0,0.12557722]
[1718243219993,0.12,68151.0,68149.0,0.11157722]
[1718243220169,0.121,68151.0,68149.0,0.11257722]
[1718243220449,0.12,68150.0,68149.0,0.026]
[1718243220662,0.2776,68150.0,68149.0,0.026]
[1718243221103,0.3557,68150.0,68149.0,0.026]
[1718243221549,0.3557,68150.0,68149.0,0.012]
[1718243221966,0.3557,68150.0,68138.0,0.54025684]
[1718243221967,0.12,68141.0,68139.0,0.04390456]
[1718243222173,0.12,68141.0,68137.0,0.85605684]
[1718243222174,0.12,68141.0,68135.0,0.137397]
[1718243222375,0.12,68141.0,68135.0,0.0787]
[1718243222591,0.12,68137.0,68135.0,0.0787]
[1718243222972,0.12,68141.0,68135.0,0.0787]
[1718243223205,0.12,68138.0,68135.0,0.1787]
[1718243223420,0.05,68148.0,68135.0,0.1787]
[1718243223421,0.12,68140.0,68139.0,0.001]
[1718243223643,0.2774,68140.0,68139.0,0.001]
[1718243223853,0.2774,68140.0,68134.0,0.0180141]
[1718243224071,0.12,68134.0,68131.0,0.1146]
[1718243224275,0.12,68134.0,68130.0,0.1195]
[1718243224494,0.1574,68140.0,68130.0,0.12367366]
[1718243224712,0.1539,68143.0,68139.0,0.014]
[1718243225097,0.1539,68143.0,68132.0,0.1405]
[1718243225310,0.001,68141.0,68135.0,0.012]
[1718243225985,0.1539,68143.0,68132.0,0.1405]
[1718243226199,0.1549,68143.0,68139.0,0.012]
[1718243226673,0.1549,68143.0,68132.0,0.1405]
[1718243226883,0.1539,68143.0,68132.0,0.1405]
[1718243227140,0.121,68141.0,68135.0,0.012]
[1718243227380,0.121,68141.0,68139.0,0.01]
[1718243227870,0.001,68141.0,68139.0,0.01]
[1718243228317,0.001,68141.0,68135.0,0.012]
[1718243228557,0.121,68141.0,68135.0,0.012]
[1718243228804,0.12,68141.0,68132.0,0.1545]
[1718243229012,0.2639,68143.0,68139.0,0.0562]
[1718243229264,0.2649,68143.0,68139.0,0.0782]
[1718243229474,0.2549,68143.0,68139.0,0.0782]
[1718243229682,0.12,68142.0,68139.0,0.0662]
[1718243230095,0.001,68141.0,68139.0,0.0662]
[1718243230305,0.121,68141.0,68139.0,0.0662]
[1718243230517,0.12,68141.0,68139.0,0.0662]
[1718243230939,0.12,68141.0,68139.0,0.05888]
[1718243231143,0.12,68141.0,68139.0,0.04888]
[1718243231556,0.12,68140.0,68135.0,0.014]
[1718243231766,0.12,68139.0,68130.0,0.12367366]
[1718243231974,0.1,68140.0,68139.0,0.012]
[1718243232187,0.12,68142.0,68139.0,0.022]
[1718243232389,0.12,68141.0,68139.0,0.0782]
[1718243232596,0.12,68141.0,68139.0,0.0682]
[1718243232815,0.12,68141.0,68139.0,0.0562]
[1718243233237,0.001,68140.0,68139.0,0.0562]
[1718243233666,0.12,68141.0,68139.0,0.0562]
[1718243234618,0.2739,68143.0,68139.0,0.0562]
[1718243235351,0.001,68141.0,68139.0,0.0782]
[1718243235592,0.001,68141.0,68139.0,0.0682]
[1718243235975,0.001,68141.0,68139.0,0.0792]
[1718243236180,0.2739,68143.0,68139.0,0.0562]
[1718243236588,0.2749,68143.0,68139.0,0.0782]
[1718243237032,0.001,68143.0,68140.0,0.0828]
[1718243237292,0.001,68143.0,68142.0,0.0562]
[1718243237995,0.121,68143.0,68142.0,0.0562]
[1718243238191,0.12,68143.0,68142.0,0.0562]
[1718243238857,0.121,68143.0,68142.0,0.0562]
[1718243239332,0.12,68143.0,68142.0,0.0562]
[1718243239544,0.12,68143.0,68142.0,0.0682]
[1718243239746,0.121,68143.0,68142.0,0.0682]
[1718243240092,0.121,68143.0,68142.0,0.0742]
[1718243240560,0.121,68143.0,68142.0,0.018]
[1718243247342,0.3649,68143.0,68142.0,0.018]
[1718243248728,0.46072634,68143.0,68142.0,0.018]
[1718243248937,0.61504627,68143.0,68142.0,0.018]
[1718243249155,0.7383709,68143.0,68142.0,0.018]
[1718243249415,0.69424627,68143.0,68142.0,0.018]
[1718243250468,0.69424627,68143.0,68142.0,0.012]
[1718243250879,0.69424627,68143.0,68142.0,0.004]
[1718243251087,0.12,68129.0,68128.0,0.49231607]
[1718243251513,0.12,68129.0,68128.0,0.4744]
[1718243251931,0.12,68129.0,68128.0,0.4736]
[1718243252349,0.2752,68130.0,68128.0,0.4736]
[1718243253147,0.2752,68130.0,68126.0,0.0562]
[1718243253779,0.12,68128.0,68126.0,0.0562]
[1718243254223,0.12,68127.0,68126.0,0.0562]
[1718243254641,0.12,68127.0,68126.0,0.0702]
[1718243254842,0.12,68127.0,68124.0,0.01794734]
[1718243255057,0.12,68126.0,68124.0,0.01794734]
[1718243255261,0.12,68123.0,68122.0,0.1231]
[1718243255464,0.12,68123.0,68122.0,0.1793]
[1718243256918,0.12,68122.0,68120.0,0.0816]
[1718243257125,0.1,68122.0,68121.0,0.0562]
[1718243257332,0.12,68123.0,68121.0,0.0562]
[1718243257498,0.1,68122.0,68121.0,0.0562]
[1718243258535,0.1,68122.0,68121.0,0.0682]
[1718243258991,0.1,68122.0,68121.0,0.0822]
[1718243259346,0.1,68122.0,68121.0,0.0702]
[1718243260778,0.101,68122.0,68121.0,0.0822]
[1718243262705,0.001,68122.0,68121.0,0.0822]
[1718243262902,0.101,68122.0,68121.0,0.0822]
[1718243268353,0.001,68122.0,68121.0,0.0822]
[1718243269147,0.001,68122.0,68121.0,0.208]
[1718243269722,0.001,68122.0,68121.0,0.0822]
[1718243269862,0.001,68122.0,68121.0,0.08807116]
[1718243270908,0.001,68122.0,68121.0,0.15541482]
[1718243275419,0.001,68122.0,68121.0,0.17350221]
[1718243278185,0.001,68122.0,68121.0,0.17339564]
[1718243280748,0.001,68122.0,68121.0,0.16752448]
[1718243281720,0.001,68122.0,68121.0,0.09323709]
[1718243281919,0.3597,68122.0,68121.0,0.09152665]
[1718243282687,0.59984627,68122.0,68121.0,0.09152665]
[1718243282907,0.60984627,68122.0,68121.0,0.02418299]
[1718243283124,0.60984627,68122.0,68121.0,0.01218299]
[1718243283125,0.59884627,68122.0,68121.0,0.01218299]
[1718243283565,0.59984627,68122.0,68121.0,0.02318299]
[1718243283761,0.60984627,68122.0,68121.0,0.011]
[1718243283962,0.04582634,68121.0,68120.0,0.000946]
[1718243284168,0.61418685,68121.0,68120.0,0.000946]
[1718243285617,0.61418685,68121.0,68120.0,0.002946]
[1718243286667,0.61518685,68121.0,68120.0,0.012946]
[1718243286825,0.61518685,68121.0,68120.0,0.010946]
[1718243287049,0.60686685,68121.0,68120.0,0.000946]
[1718243287460,0.60786685,68121.0,68120.0,0.010946]
[1718243288747,0.60786685,68121.0,68120.0,0.01058621]
[1718243290877,0.55786685,68121.0,68120.0,0.01058621]
[1718243291085,0.60786685,68121.0,68120.0,0.01058621]
[1718243291417,0.60786685,68121.0,68120.0,0.01018719]
[1718243293032,0.60872685,68121.0,68120.0,0.01018719]
[1718243293360,0.60872685,68121.0,68120.0,0.00976991]
[1718243293804,0.61872685,68121.0,68120.0,0.00976991]
[1718243294009,0.69058627,68121.0,68120.0,0.00976991]
[1718243294590,0.05850634,68113.0,68112.0,0.000946]
[1718243294805,0.62252627,68113.0,68112.0,0.000946]
[1718243295398,0.61252627,68113.0,68112.0,0.000946]
[1718243295596,0.62252627,68113.0,68112.0,0.000946]
[1718243297620,0.62352627,68113.0,68112.0,0.006946]
[1718243297878,0.62452627,68113.0,68112.0,0.015946]
[1718243298428,0.62452627,68113.0,68112.0,0.0155265]
[1718243301975,0.67397568,68113.0,68112.0,0.0155265]
[1718243302221,0.68072627,68113.0,68112.0,0.0155265]
[1718243302815,0.67972627,68113.0,68112.0,0.0095265]
[1718243303856,0.67872627,68113.0,68112.0,0.0005265]
[1718243304056,0.67872627,68113.0,68112.0,0.00014698]
[1718243304255,0.67972627,68113.0,68112.0,0.00014698]
[1718243304621,0.67972627,68113.0,68112.0,0.00114698]
[1718243304622,0.68572627,68113.0,68112.0,0.00114698]
[1718243305053,0.67972627,68113.0,68112.0,0.00014698]
[1718243305262,0.62352627,68113.0,68112.0,0.00014698]
[1718243305491,0.49352627,68113.0,68112.0,0.00014698]
[1718243305713,0.06,68113.0,68112.0,0.05734698]
[1718243307012,0.059,68113.0,68112.0,0.05734698]
[1718243307432,0.051,68113.0,68112.0,0.01214698]
[1718243307640,0.051,68113.0,68112.0,0.06834698]
[1718243307852,0.051,68113.0,68112.0,0.06234698]
[1718243308306,0.051,68113.0,68112.0,0.06834698]
[1718243308556,0.052,68113.0,68112.0,0.08134698]
[1718243308766,0.052,68113.0,68112.0,0.05634698]
[1718243308974,0.05,68113.0,68112.0,0.05634698]
[1718243309187,0.051,68113.0,68112.0,0.06434698]
[1718243309661,0.051,68113.0,68112.0,0.12960059]
[1718243310863,0.052,68113.0,68112.0,0.14160059]
[1718243312128,0.172,68113.0,68112.0,0.14160059]
[1718243312333,0.052,68113.0,68112.0,0.14160059]
[1718243313516,0.052,68113.0,68112.0,0.08525361]
[1718243313739,0.052,68113.0,68112.0,0.14145361]
[1718243314122,0.172,68113.0,68112.0,0.14145361]
[1718243315468,0.052,68113.0,68112.0,0.14145361]
[1718243322668,0.052,68113.0,68112.0,0.14550717]
[1718243323210,0.052,68113.0,68112.0,0.14550746]
[1718243323819,0.152,68113.0,68112.0,0.14550746]
[1718243324078,0.052,68113.0,68112.0,0.14550746]
[1718243324233,0.172,68113.0,68112.0,0.14550746]
[1718243325075,0.052,68113.0,68112.0,0.14550746]
[1718243325276,0.052,68113.0,68112.0,0.14645346]
[1718243325500,0.05286,68113.0,68112.0,0.14645346]
[1718243325717,0.29086702,68113.0,68112.0,0.09025346]
[1718243325928,0.52196702,68113.0,68112.0,0.09025346]
[1718243326136,0.44980706,68113.0,68112.0,0.09025346]
[1718243328109,0.39980706,68113.0,68112.0,0.09025346]
[1718243328327,0.44980706,68113.0,68112.0,0.09025346]
[1718243331057,0.32980706,68113.0,68112.0,0.09025346]
[1718243331484,0.44980706,68113.0,68112.0,0.09025346]
[1718243332329,0.32980706,68113.0,68112.0,0.09025346]
[1718243332545,0.25390706,68113.0,68112.0,0.09025346]
[1718243332956,0.36656634,68113.0,68112.0,0.09025346]
[1718243333937,0.24656634,68113.0,68112.0,0.09025346]
[1718243334139,0.36656634,68113.0,68112.0,0.09025346]
[1718243334347,0.36656634,68113.0,68112.0,0.09087046]
[1718243334571,0.05286,68113.0,68112.0,0.09087046]
[1718243335674,0.2187074,68113.0,68112.0,0.09087046]
[1718243338862,0.05286,68113.0,68112.0,0.09087046]
[1718243339735,0.09136634,68113.0,68112.0,0.09087046]
[1718243339910,0.05286,68113.0,68112.0,0.09087046]
[1718243340188,0.17286,68113.0,68112.0,0.09087046]
[1718243340569,0.05286,68113.0,68112.0,0.09087046]
[1718243341043,0.05286,68113.0,68112.0,0.14357046]
[1718243342920,0.05286,68113.0,68112.0,0.14883362]
[1718243344603,0.05286,68113.0,68112.0,0.073646]
[1718243344837,0.05286,68113.0,68112.0,0.14884003]
[1718243344990,0.05286,68113.0,68112.0,0.09614003]
[1718243346664,0.21426,68113.0,68112.0,0.09614003]
[1718243347522,0.59608627,68113.0,68112.0,0.09614003]
[1718243347742,0.67953089,68113.0,68112.0,0.09614003]
[1718243347949,0.67953089,68113.0,68112.0,0.020946]
[1718243348158,0.82435065,68113.0,68112.0,0.020946]
[1718243348609,0.82435065,68113.0,68112.0,0.012946]
[1718243348610,0.82335575,68113.0,68112.0,0.012946]
[1718243348812,0.82235575,68113.0,68112.0,0.000946]
[1718243349027,0.82235575,68113.0,68112.0,0.006946]
[1718243349258,0.73991113,68113.0,68112.0,0.018946]
[1718243349470,0.61808627,68113.0,68112.0,0.018946]
[1718243349886,0.61708627,68113.0,68112.0,0.006946]
[1718243350109,0.61708627,68113.0,68112.0,0.018946]
[1718243350377,0.57957993,68113.0,68112.0,0.012946]
[1718243350608,0.63008627,68113.0,68112.0,0.012946]
[1718243350816,0.62008627,68113.0,68112.0,0.012946]
[1718243351022,0.63008627,68113.0,68112.0,0.012946]
[1718243352331,0.62008627,68113.0,68112.0,0.012946]
[1718243352549,0.63008627,68113.0,68112.0,0.012946]
[1718243353184,0.70593089,68113.0,68112.0,0.012946]
[1718243353622,0.63008627,68113.0,68112.0,0.012946]
[1718243356021,0.59708627,68113.0,68112.0,0.012946]
[1718243357543,0.59608627,68113.0,68112.0,0.000946]
[1718243357955,0.59408627,68113.0,68112.0,0.000946]
[1718243358176,0.59708627,68113.0,68112.0,0.000946]
[1718243358595,0.59408627,68113.0,68112.0,0.000946]
[1718243359175,0.60008627,68113.0,68112.0,0.011946]
[1718243360062,0.60908627,68113.0,68112.0,0.000946]
[1718243360266,0.61008627,68113.0,68112.0,0.010946]
[1718243360767,0.59908627,68113.0,68112.0,0.000946]
[1718243361019,0.59408627,68113.0,68112.0,0.000946]
[1718243361246,0.61008627,68113.0,68112.0,0.001946]
[1718243361421,0.59408627,68113.0,68112.0,0.000946]
[1718243361885,0.60308627,68113.0,68112.0,0.001946]
[1718243362494,0.60408627,68113.0,68112.0,0.012946]
[1718243363797,0.60408627,68113.0,68112.0,0.001946]
[1718243363798,0.60308627,68113.0,68112.0,0.001946]
[1718243364267,0.60708627,68113.0,68112.0,0.001946]
[1718243364447,0.61708627,68113.0,68112.0,0.002946]
[1718243364644,0.61708627,68113.0,68112.0,0.001946]
[1718243364841,0.60708627,68113.0,68112.0,0.001946]
[1718243365097,0.61608627,68113.0,68112.0,0.002946]
[1718243365507,0.60308627,68113.0,68112.0,0.001946]
[1718243366017,0.61408627,68113.0,68112.0,0.011946]
[1718243366217,0.60408627,68113.0,68112.0,0.011946]
[1718243366730,0.61408627,68113.0,68112.0,0.011946]
[1718243367538,0.60408627,68113.0,68112.0,0.011946]
[1718243371761,0.60408627,68113.0,68112.0,0.011548]
[1718243373605,0.61408627,68113.0,68112.0,0.011548]
[1718243373827,0.60408627,68113.0,68112.0,0.011548]
[1718243374028,0.61408627,68113.0,68112.0,0.011548]
[1718243374236,0.60408627,68113.0,68112.0,0.011548]
[1718243374537,0.61408627,68113.0,68112.0,0.011548]
[1718243374892,0.6811149,68113.0,68112.0,0.011548]
[1718243375102,0.7041149,68113.0,68112.0,0.011548]
[1718243388830,0.8041149,68113.0,68112.0,0.011548]
[1718243389039,0.8541149,68113.0,68112.0,0.011548]
[1718243389244,1.15869745,68113.0,68112.0,0.011548]
[1718243389883,1.34793106,68113.0,68112.0,0.011548]
[1718243390306,1.672297,68113.0,68112.0,0.001548]
[1718243390519,1.34693106,68113.0,68112.0,0.001548]
[1718243390777,1.4124801,68113.0,68112.0,0.001548]
[1718243391174,1.66329861,68113.0,68112.0,0.000548]
[1718243391609,1.66329861,68113.0,68105.0,0.009427]
[1718243391610,0.60670634,68106.0,68105.0,0.009427]
[1718243391822,1.32320239,68106.0,68105.0,0.009427]
[1718243392042,1.44620239,68106.0,68105.0,1e-08]
[1718243392249,1.88079918,68106.0,68105.0,1e-08]
[1718243392663,1.77161789,68106.0,68105.0,1e-08]
[1718243392876,1.91593782,68106.0,68105.0,1e-08]
[1718243393074,1.92993782,68106.0,68105.0,1e-08]
[1718243393277,2.01726142,68106.0,68105.0,1e-08]
[1718243393481,2.00326142,68106.0,68105.0,1e-08]
[1718243394279,1.65598439,68106.0,68105.0,1e-08]
[1718243394632,1.66848793,68106.0,68105.0,0.00100001]
[1718243394983,1.60302653,68106.0,68105.0,0.00100001]
[1718243395421,1.61702653,68106.0,68105.0,0.00100001]
[1718243395608,1.68249609,68106.0,68105.0,0.00100001]
[1718243395811,1.66849609,68106.0,68105.0,0.00100001]
[1718243396070,1.68249609,68106.0,68105.0,0.00100001]
[1718243396273,1.60302653,68106.0,68105.0,1e-08]
[1718243396604,1.60310925,68106.0,68105.0,1e-08]
[1718243396813,1.61710925,68106.0,68105.0,0.00100001]
[1718243397033,0.20850634,68084.0,68075.0,0.0776]
[1718243397255,0.65852627,68084.0,68075.0,0.0776]
[1718243397452,0.65852627,68084.0,68066.0,0.000946]
[1718243397654,0.65852627,68084.0,68071.0,0.0799]
[1718243397655,0.68152627,68084.0,68071.0,0.0799]
[1718243398399,0.68252627,68084.0,68083.0,0.009946]
[1718243398625,0.7507789,68084.0,68083.0,0.009946]
[1718243398829,0.67252627,68084.0,68083.0,0.009946]
[1718243399070,0.60132627,68084.0,68083.0,0.009946]
[1718243399291,0.44302627,68084.0,68083.0,0.009946]
[1718243399754,0.39082627,68084.0,68083.0,0.009946]
[1718243399975,0.44702627,68084.0,68083.0,0.009946]
[1718243400639,0.39082627,68084.0,68083.0,0.009946]
[1718243400885,0.35782627,68084.0,68083.0,0.009946]
[1718243401092,0.35782627,68084.0,68083.0,0.145046]
[1718243401093,0.23782627,68084.0,68083.0,0.145046]
[1718243401319,0.23782627,68084.0,68083.0,0.201246]
[1718243401540,0.055,68084.0,68083.0,0.201246]
[1718243401784,0.055,68084.0,68083.0,0.145046]
[1718243402001,0.055,68084.0,68083.0,0.201246]
[1718243402225,0.175,68084.0,68083.0,0.201246]
[1718243402450,0.18234403,68084.0,68083.0,0.145046]
[1718243402691,0.17834403,68084.0,68083.0,0.145046]
[1718243402877,0.17834403,68084.0,68083.0,0.146046]
[1718243403148,0.3601703,68084.0,68083.0,0.001946]
[1718243403598,0.3611703,68084.0,68083.0,0.015946]
[1718243406490,0.5814703,68084.0,68083.0,0.015946]
[1718243406704,0.5914703,68084.0,68083.0,0.015946]
[1718243407124,0.73271733,68084.0,68083.0,0.015946]
[1718243407985,0.73171733,68084.0,68083.0,0.001946]
[1718243408411,0.73271733,68084.0,68083.0,0.015946]
[1718243408871,0.73271733,68084.0,68083.0,0.014946]
[1718243409311,0.73871733,68084.0,68083.0,0.014946]
[1718243409777,0.73271733,68084.0,68083.0,0.014946]
[1718243410013,0.74671733,68084.0,68083.0,0.014946]
[1718243410241,0.75571733,68084.0,68083.0,0.014946]
[1718243410467,0.75471733,68084.0,68083.0,0.000946]
[1718243410695,0.75471733,68084.0,68083.0,0.001946]
[1718243410696,0.76871733,68084.0,68083.0,0.001946]
[1718243410914,1.07771733,68084.0,68083.0,0.001946]
[1718243411427,1.37347469,68084.0,68083.0,0.000946]
[1718243411646,1.38247469,68084.0,68083.0,0.001946]
[1718243412086,1.36847469,68084.0,68083.0,0.001946]
[1718243412290,1.37347469,68084.0,68083.0,0.000946]
[1718243412717,1.05471733,68084.0,68083.0,0.000946]
[1718243412923,1.13951733,68084.0,68083.0,0.000946]
[1718243413129,1.15351733,68084.0,68083.0,0.000946]
[1718243413349,1.13951733,68084.0,68083.0,0.000946]
[1718243413761,1.15351733,68084.0,68083.0,0.000946]
[1718243413974,1.14751733,68084.0,68083.0,0.001946]
[1718243414801,1.13951733,68084.0,68083.0,0.000946]
[1718243415001,1.13951733,68084.0,68083.0,0.001946]
[1718243415241,0.91751733,68084.0,68083.0,0.001946]
[1718243415418,1.04751733,68084.0,68083.0,0.001946]
[1718243415642,1.21167729,68084.0,68083.0,0.000946]
[1718243416006,1.22567729,68084.0,68083.0,0.000946]
[1718243417118,1.23367729,68084.0,68083.0,0.001946]
[1718243417754,1.22567729,68084.0,68083.0,0.000946]
[1718243417967,1.23367729,68084.0,68083.0,0.001946]
[1718243418188,0.41850634,68081.0,68080.0,0.00399913]
[1718243418398,1.00052712,68081.0,68080.0,0.00399913]
[1718243419270,1.00087947,68081.0,68080.0,0.00399913]
[1718243419712,1.01487947,68081.0,68080.0,0.00399913]
[1718243419932,1.00087947,68081.0,68080.0,0.00399913]
[1718243420136,1.1451994,68081.0,68080.0,0.00399913]
[1718243420336,1.1591994,68081.0,68080.0,0.00399913]
[1718243420554,1.1591994,68081.0,68080.0,0.00499913]
[1718243420700,1.1731994,68081.0,68080.0,0.00499913]
[1718243421118,1.1591994,68081.0,68080.0,0.00399913]
[1718243421517,1.1731994,68081.0,68080.0,0.00499913]
[1718243425304,1.0915462,68081.0,68080.0,0.00499913]
[1718243425719,1.17328616,68081.0,68080.0,0.00499913]
[1718243431444,1.32609744,68081.0,68080.0,0.00499913]
[1718243432799,1.33552444,68081.0,68080.0,0.00499913]
[1718243434064,0.64240634,68067.0,68066.0,0.000946]
[1718243434294,1.13288623,68067.0,68066.0,0.000946]
[1718243434929,1.04828623,68067.0,68066.0,0.000946]
[1718243435788,1.06228623,68067.0,68066.0,0.000946]
[1718243436005,0.21850634,68064.0,68063.0,0.005373]
[1718243436224,0.54222627,68064.0,68063.0,0.005373]
[1718243436672,0.48582627,68064.0,68063.0,0.005373]
[1718243436887,0.54222627,68064.0,68063.0,0.005373]
[1718243437490,0.55622627,68064.0,68063.0,0.005373]
[1718243437717,0.67707776,68064.0,68063.0,0.005373]
[1718243438788,0.72707776,68064.0,68063.0,0.005373]
[1718243439009,0.60622627,68064.0,68063.0,0.005373]
[1718243439875,0.57022627,68064.0,68063.0,0.005373]
[1718243440286,0.55622627,68064.0,68063.0,0.005373]
[1718243440488,0.57022627,68064.0,68063.0,0.005373]
[1718243440695,0.55622627,68064.0,68063.0,0.005373]
[1718243441131,0.47582627,68064.0,68063.0,0.141373]